[Event "CZE-ch U12 2020"]
[Site "Kouty nad Desnou"]
[Date "2020.03.07"]
[Round "1.4"]
[White "Soucek, Jan"]
[Black "Setina, Vaclav"]
[Result "0-1"]
[ECO "B39"]
[WhiteElo "1872"]
[BlackElo "1507"]
[Annotator "NA RC"]
[PlyCount "100"]
[EventDate "2020.03.07"]
[EventCountry "CZE"]
[SourceTitle "playchess.com"]
[Source "ChessBase"]
[SourceQuality "1"]
[TimeControl "5400+30"]

1. e4 {[%emt 0:00:00]} c5 {[%emt 0:00:00]} 2. Nf3 {[%emt 0:00:00]} Nc6 {[%emt 0:00:00]} 3. d4 {[%emt 0:00:00]} cxd4 {[%emt 0:00:00]} 4. Nxd4 {[%emt 0:00:00]} g6 {[%emt 0:00:00]} 5. c4 {[%emt 0:00:11]} Bg7 {[%emt 0:00:15]} 6. Be3 {[%emt 0:00:07]} Nf6 {[%emt 0:00:10]} 7. Nc3 {[%emt 0:00:08]} Ng4 {[%emt 0:00:31]} 8. Qxg4 {[%emt 0:00:06]} Nxd4 {[%emt 0:00:18]} 9. Qd1 {[%emt 0:00:05]} Ne6 {[%emt 0:00:23]} 10. Qd2 {[%emt 0:00:25]} O-O {[%emt 0:01:25]} 11. Be2 {[%emt 0:00:34]} d6 {[%emt 0:00:47]} 12. O-O {[%emt 0:00:45]} b6 {[%emt 0:00:45]} 13. Rac1 {[%emt 0:00:36]} Bb7 {[%emt 0:02:27]} 14. f3 {[%emt 0:00:19]} Rc8 {[%emt 0:04:14]} 15. b3 {[%emt 0:01:56]} Qd7 {[%emt 0:04:55]} 16. Kh1 {[%emt 0:29:32]} Rfd8 {[%emt 0:10:44]} 17. Nd5 {[%emt 0:39:26]} Bxd5 {[%emt 0:12:58]} 18. cxd5 {[%emt 0:04:07]} Nc5 {[%emt 0:02:15]} 19. b4 {[%emt 0:09:02]} Na4 {[%emt 0:07:04]} 20. Ba6 {[%emt 0:02:41]} Rxc1 {[%emt 0:23:22]} 21. Rxc1 {[%emt 0:01:08]} b5 {[%emt 0:00:44]} 22. Bd4 {[%emt 0:03:01]} Rb8 {[%emt 0:11:44]} 23. Rc6 {[%emt 0:04:08]} Bxd4 {[%emt 0:09:23]} 24. Qxd4 {[%emt 0:00:17]} e5 {[%emt 0:00:01]} 25. Qd3 {[%emt 0:02:00]} Kg7 {[%emt 0:07:01]} 26. Bxb5 {[%emt 0:01:45]} Qb7 {[%emt 0:00:08]} 27. Bxa4 {[%emt 0:00:29]} Qxb4 {[%emt 0:00:01]} 28. Rc1 {[%emt 0:00:37]} Qxa4 {[%emt 0:00:10]} 29. Qd2 {[%emt 0:00:21]} Qa3 {[%emt 0:00:58]} 30. h4 {[%emt 0:00:33]} Rb2 {[%emt 0:00:38]} 31. Rc2 {[%emt 0:00:07]} Rxc2 {[%emt 0:01:21]} 32. Qxc2 {[%emt 0:00:01]} Qe3 {[%emt 0:00:02]} 33. Qd1 {[%emt 0:00:24]} Qf2 {[%emt 0:00:23]} 34. a4 {[%emt 0:00:40]} Qxh4+ 35. Kg1 Qd8 {[%emt 0:00:56]} 36. Qc2 {[%emt 0:01:13]} Qa5 {[%emt 0:00:31]} 37. Qc6 {[%emt 0:00:51]} Qb6+ {[%emt 0:01:14]} 38. Kh2 {[%emt 0:00:23]} Kf8 {[%emt 0:00:39]} 39. Kg3 {[%emt 0:00:55]} Qxc6 {[%emt 0:00:16]} 40. dxc6 {[%emt 0:00:01]} Ke8 {[%emt 0:00:01]} 41. Kg4 {[%emt 0:00:26]} f6 {[%emt 0:00:18]} 42. f4 {[%emt 0:00:10]} Kd8 {[%emt 0:00:06]} 43. fxe5 {[%emt 0:00:21]} dxe5 {[%emt 0:00:01]} 44. Kf3 {[%emt 0:00:11]} Kc7 {[%emt 0:00:03]} 45. Ke3 {[%emt 0:00:06]} Kxc6 {[%emt 0:00:13]} 46. Kd3 {[%emt 0:00:04]} Kc5 {[%emt 0:00:14]} 47. Kc3 {[%emt 0:00:11]} f5 {[%emt 0:00:05]} 48. exf5 {[%emt 0:00:10]} gxf5 {[%emt 0:00:01]} 49. g3 {[%emt 0:00:55]} h5 {[%emt 0:00:16]} 50. Kd3 {[%emt 0:00:14]} Kb4 {[%emt 0:00:10]} 0-1

[Event "CZE-ch U12 2020"]
[Site "Kouty nad Desnou"]
[Date "2020.03.07"]
[Round "1.5"]
[White "Kubin, Tomas Daniel"]
[Black "Day, Tobias"]
[Result "1-0"]
[ECO "B76"]
[WhiteElo "1484"]
[BlackElo "1837"]
[Annotator "NA RC"]
[PlyCount "45"]
[EventDate "2020.03.07"]
[EventCountry "CZE"]
[SourceTitle "playchess.com"]
[Source "ChessBase"]
[SourceQuality "1"]
[TimeControl "5400+30"]

1. e4 {[%emt 0:00:00]} c5 {[%emt 0:00:00]} 2. Nf3 {[%emt 0:00:00]} d6 {[%emt 0:00:00]} 3. d4 {[%emt 0:00:00]} cxd4 {[%emt 0:00:00]} 4. Nxd4 {[%emt 0:00:21]} Nf6 {[%emt 0:00:13]} 5. Nc3 {[%emt 0:00:40]} g6 {[%emt 0:00:11]} 6. Be3 {[%emt 0:00:44]} Bg7 {[%emt 0:00:15]} 7. f3 {[%emt 0:00:09]} O-O {[%emt 0:00:11]} 8. Qd2 {[%emt 0:00:22]} Nc6 {[%emt 0:00:09]} 9. O-O-O {[%emt 0:00:22]} d5 {[%emt 0:00:31]} 10. Nxc6 {[%emt 0:03:37]} bxc6 {[%emt 0:00:08]} 11. exd5 {[%emt 0:00:10]} Nxd5 {[%emt 0:01:07]} 12. Nxd5 {[%emt 0:03:24]} cxd5 {[%emt 0:00:39]} 13. Qxd5 {[%emt 0:01:02]} Qc7 {[%emt 0:00:28]} 14. Qc5 {[%emt 0:02:22]} Qb7 {[%emt 0:00:43]} 15. b3 {[%emt 0:08:14]} Be6 {[%emt 0:20:57]} 16. Qa5 {[%emt 0:17:50]} a6 {[%emt 0:06:07]} 17. Bd3 {[%emt 0:05:48]} f5 {[%emt 0:07:06]} 18. Rhe1 {[%emt 0:11:29]} Rfc8 {[%emt 0:04:50]} 19. Qb6 {[%emt 0:02:28]} Qxb6 {[%emt 0:00:53]} 20. Bxb6 {[%emt 0:00:16]} Rc6 {[%emt 0:00:23]} 21. Rxe6 {[%emt 0:01:48]} Rxe6 {[%emt 0:07:11]} 22. Bc4 {[%emt 0:00:09]} Kf7 {[%emt 0:00:50]} 23. Re1 {[%emt 0:00:45]} 1-0

[Event "CZE-ch U12 2020"]
[Site "Kouty nad Desnou"]
[Date "2020.03.07"]
[Round "1.6"]
[White "Hladky, Tadeas"]
[Black "Matusik, Ondrej"]
[Result "1-0"]
[ECO "C03"]
[WhiteElo "1773"]
[BlackElo "1482"]
[Annotator "NA RC"]
[PlyCount "45"]
[EventDate "2020.03.07"]
[EventCountry "CZE"]
[SourceTitle "playchess.com"]
[Source "ChessBase"]
[SourceQuality "1"]
[TimeControl "5400+30"]

1. e4 {[%emt 0:00:00]} e6 {[%emt 0:00:00]} 2. d4 {[%emt 0:00:00]} d5 {[%emt 0:00:00]} 3. Nd2 {[%emt 0:00:00]} Ne7 {[%emt 0:03:09]} 4. Ngf3 {[%emt 0:01:09]} Bd7 {[%emt 0:03:56]} 5. Bd3 {[%emt 0:01:49]} Ng6 {[%emt 0:04:04]} 6. Nb3 {[%emt 0:05:17]} Be7 {[%emt 0:10:26]} 7. Be3 {[%emt 0:03:46]} a5 {[%emt 0:04:29]} 8. O-O {[%emt 0:05:55]} a4 {[%emt 0:01:58]} 9. Nc1 {[%emt 0:01:41]} Na6 {[%emt 0:03:36]} 10. c3 {[%emt 0:01:54]} O-O {[%emt 0:07:59]} 11. Ne2 {[%emt 0:04:12]} b6 {[%emt 0:09:42]} 12. Bc2 {[%emt 0:04:48]} b5 {[%emt 0:15:38]} 13. Nf4 {[%emt 0:04:09]} Nxf4 {[%emt 0:03:41]} 14. Bxf4 {[%emt 0:00:07]} Bc6 {[%emt 0:03:29]} 15. e5 {[%emt 0:02:01]} f5 {[%emt 0:02:25]} 16. exf6 {[%emt 0:00:49]} Bxf6 {[%emt 0:00:21]} 17. Be5 {[%emt 0:00:31]} Bd7 {[%emt 0:01:39]} 18. Bxf6 {[%emt 0:04:51]} Qxf6 {[%emt 0:01:08]} 19. Ne5 {[%emt 0:00:39]} Rad8 {[%emt 0:02:27]} 20. Qd3 {[%emt 0:00:38]} Qf5 {[%emt 0:02:52]} 21. Qe2 {[%emt 0:00:34]} Qg5 {[%emt 0:04:54]} 22. Nxd7 {[%emt 0:00:15]} Rxd7 {[%emt 0:00:33]} 23. Qxe6+ {[%emt 0:00:13]} 1-0

[Event "CZE-ch U12 2020"]
[Site "Kouty nad Desnou"]
[Date "2020.03.07"]
[Round "1.7"]
[White "Tesar, Jakub"]
[Black "Prazak, Daniel"]
[Result "0-1"]
[ECO "B12"]
[WhiteElo "1446"]
[BlackElo "1765"]
[Annotator "NA RC"]
[PlyCount "94"]
[EventDate "2020.03.07"]
[EventCountry "CZE"]
[SourceTitle "playchess.com"]
[Source "ChessBase"]
[SourceQuality "1"]
[TimeControl "5400+30"]

1. e4 {[%emt 0:02:23]} c6 {[%emt 0:00:11]} 2. d4 {[%emt 0:00:15]} d5 {[%emt 0:00:14]} 3. e5 {[%emt 0:02:22]} c5 {[%emt 0:01:11]} 4. c3 {[%emt 0:03:28]} Nc6 {[%emt 0:01:46]} 5. Nf3 {[%emt 0:04:49]} Bg4 {[%emt 0:02:21]} 6. Be2 {[%emt 0:20:56]} e6 {[%emt 0:19:51]} 7. Nbd2 {[%emt 0:05:48]} Nge7 {[%emt 0:05:11]} 8. O-O {[%emt 0:07:46]} cxd4 {[%emt 0:01:01]} 9. Nxd4 {[%emt 0:00:29]} Bxe2 {[%emt 0:01:52]} 10. Qxe2 Ng6 11. f4 {[%emt 0:07:39]} Qb6 {[%emt 0:09:45]} 12. N2b3 {[%emt 0:02:22]} Be7 {[%emt 0:13:47]} 13. Be3 {[%emt 0:03:37]} Qc7 {[%emt 0:01:47]} 14. Nxc6 {[%emt 0:01:37]} bxc6 {[%emt 0:01:53]} 15. Nc5 {[%emt 0:06:41]} O-O {[%emt 0:10:04]} 16. Bd4 {[%emt 0:09:04]} Rfe8 {[%emt 0:07:14]} 17. Qf2 {[%emt 0:06:14]} a5 {[%emt 0:03:50]} 18. f5 {[%emt 0:04:41]} exf5 {[%emt 0:00:30]} 19. e6 {[%emt 0:03:06]} Bxc5 {[%emt 0:00:33]} 20. exf7+ {[%emt 0:00:08]} Qxf7 {[%emt 0:00:13]} 21. Bxc5 {[%emt 0:00:09]} f4 {[%emt 0:02:29]} 22. Bd6 {[%emt 0:00:32]} Re4 {[%emt 0:02:21]} 23. g3 {[%emt 0:00:32]} Rd8 {[%emt 0:02:01]} 24. Bxf4 {[%emt 0:01:21]} Nxf4 {[%emt 0:00:09]} 25. gxf4 {[%emt 0:00:10]} Rf8 {[%emt 0:01:33]} 26. Rae1 {[%emt 0:01:04]} Rxf4 {[%emt 0:00:44]} 27. Qxf4 {[%emt 0:01:46]} Qxf4 {[%emt 0:00:12]} 28. Rxf4 {[%emt 0:00:07]} Rxf4 {[%emt 0:00:02]} 29. Re8+ {[%emt 0:01:52]} Kf7 {[%emt 0:00:29]} 30. Rc8 {[%emt 0:00:19]} Rc4 {[%emt 0:00:38]} 31. Rc7+ {[%emt 0:00:11]} Kf6 {[%emt 0:02:32]} 32. Kf2 {[%emt 0:00:09]} a4 {[%emt 0:00:49]} 33. Ra7 {[%emt 0:00:55]} h6 {[%emt 0:00:53]} 34. Ke3 {[%emt 0:00:10]} g5 {[%emt 0:00:46]} 35. Kd3 {[%emt 0:00:23]} Ke6 {[%emt 0:00:48]} 36. b4 {[%emt 0:00:23]} axb3 {[%emt 0:00:11]} 37. axb3 {[%emt 0:00:14]} Rh4 {[%emt 0:00:09]} 38. Ra2 {[%emt 0:00:26]} Kf5 {[%emt 0:02:56]} 39. Rg2 {[%emt 0:01:00]} c5 {[%emt 0:00:51]} 40. Ke3 {[%emt 0:03:08]} Rh3+ {[%emt 0:00:10]} 41. Kd2 {[%emt 0:00:31]} g4 {[%emt 0:00:21]} 42. Kc2 {[%emt 0:01:00]} h5 {[%emt 0:00:15]} 43. b4 {[%emt 0:00:21]} d4 {[%emt 0:00:38]} 44. b5 {[%emt 0:01:12]} Rxc3+ {[%emt 0:00:08]} 45. Kb2 {[%emt 0:00:07]} c4 {[%emt 0:00:13]} 46. Rg3 {[%emt 0:00:47]} Rxg3 {[%emt 0:00:15]} 47. hxg3 {[%emt 0:00:08]} Ke5 {[%emt 0:00:06]} 0-1

[Event "CZE-ch U12 2020"]
[Site "Kouty nad Desnou"]
[Date "2020.03.07"]
[Round "1.8"]
[White "Zelba, Lukas"]
[Black "Babula, Matej"]
[Result "1-0"]
[ECO "D00"]
[WhiteElo "1727"]
[BlackElo "1353"]
[Annotator "NA RC"]
[PlyCount "63"]
[EventDate "2020.03.07"]
[EventCountry "CZE"]
[SourceTitle "playchess.com"]
[Source "ChessBase"]
[SourceQuality "1"]
[TimeControl "5400+30"]

1. d4 {[%emt 0:00:00]} d5 {[%emt 0:00:00]} 2. Bf4 {[%emt 0:00:32]} Nf6 {[%emt 0:00:04]} 3. e3 {[%emt 0:00:23]} Bf5 {[%emt 0:00:38]} 4. c4 {[%emt 0:00:12]} e6 {[%emt 0:00:08]} 5. Nc3 {[%emt 0:01:20]} Be7 {[%emt 0:03:16]} 6. Qb3 {[%emt 0:01:33]} b6 {[%emt 0:03:28]} 7. cxd5 {[%emt 0:01:53]} exd5 {[%emt 0:00:43]} 8. Bb5+ {[%emt 0:00:36]} Kf8 {[%emt 0:07:08]} 9. Be5 {[%emt 0:06:06]} Be6 {[%emt 0:04:29]} 10. h3 {[%emt 0:04:04]} h6 {[%emt 0:01:26]} 11. Qa4 {[%emt 0:06:17]} a6 {[%emt 0:07:14]} 12. Bc6 {[%emt 0:02:55]} Nxc6 {[%emt 0:03:42]} 13. Qxc6 {[%emt 0:00:16]} Ra7 {[%emt 0:00:56]} 14. Bxf6 {[%emt 0:03:54]} Bxf6 {[%emt 0:00:43]} 15. Nf3 {[%emt 0:01:37]} Kg8 {[%emt 0:01:22]} 16. O-O {[%emt 0:03:07]} Kh7 {[%emt 0:01:25]} 17. e4 {[%emt 0:01:40]} dxe4 {[%emt 0:01:59]} 18. Nxe4 {[%emt 0:00:48]} Be7 {[%emt 0:01:03]} 19. Rfd1 {[%emt 0:14:13]} Qd5 {[%emt 0:04:16]} 20. Ne5 {[%emt 0:01:37]} Rb7 {[%emt 0:12:43]} 21. Qc2 {[%emt 0:05:01]} f5 {[%emt 0:05:09]} 22. Ng3 {[%emt 0:05:49]} Rf8 {[%emt 0:02:09]} 23. Ne2 {[%emt 0:01:02]} Bg5 {[%emt 0:04:00]} 24. h4 {[%emt 0:00:47]} Bxh4 {[%emt 0:05:30]} 25. Nf4 {[%emt 0:00:14]} Qd6 {[%emt 0:01:00]} 26. Nfg6 {[%emt 0:00:26]} Bf6 {[%emt 0:01:19]} 27. Nxf8+ {[%emt 0:00:17]} Qxf8 {[%emt 0:00:06]} 28. Qc6 {[%emt 0:00:39]} Qc8 {[%emt 0:00:45]} 29. d5 {[%emt 0:00:49]} Bxe5 {[%emt 0:01:04]} 30. dxe6 {[%emt 0:00:31]} Bxb2 {[%emt 0:01:15]} 31. e7 {[%emt 0:00:36]} Rb8 {[%emt 0:00:56]} 32. Rd8 {[%emt 0:00:35]} 1-0

[Event "CZE-ch U12 2020"]
[Site "Kouty nad Desnou"]
[Date "2020.03.07"]
[Round "1.9"]
[White "Sigut, Ondrej"]
[Black "Veverka, Vladimir"]
[Result "0-1"]
[ECO "C02"]
[WhiteElo "1274"]
[BlackElo "1656"]
[Annotator "NA RC"]
[PlyCount "56"]
[EventDate "2020.03.07"]
[EventCountry "CZE"]
[SourceTitle "playchess.com"]
[Source "ChessBase"]
[SourceQuality "1"]
[TimeControl "5400+30"]

1. e4 {[%emt 0:00:00]} e6 {[%emt 0:00:00]} 2. d4 {[%emt 0:00:00]} d5 {[%emt 0:00:04]} 3. e5 {[%emt 0:00:00]} c5 {[%emt 0:00:36]} 4. c3 {[%emt 0:00:33]} Nc6 {[%emt 0:00:22]} 5. Nf3 {[%emt 0:00:10]} Qb6 {[%emt 0:00:35]} 6. a3 {[%emt 0:01:40]} a5 {[%emt 0:00:25]} 7. Be2 {[%emt 0:01:27]} cxd4 {[%emt 0:01:22]} 8. cxd4 {[%emt 0:01:26]} Nge7 {[%emt 0:00:27]} 9. b3 {[%emt 0:04:09]} Nf5 {[%emt 0:03:12]} 10. Bb2 {[%emt 0:01:42]} Bd7 {[%emt 0:02:31]} 11. O-O {[%emt 0:01:52]} Be7 {[%emt 0:02:26]} 12. h3 {[%emt 0:11:24]} O-O {[%emt 0:03:49]} 13. g4 {[%emt 0:04:54]} Nh4 {[%emt 0:02:12]} 14. Kh1 {[%emt 0:01:49]} Nxf3 {[%emt 0:02:50]} 15. Bxf3 {[%emt 0:01:00]} f6 {[%emt 0:08:13]} 16. Kg2 {[%emt 0:07:28]} Rac8 {[%emt 0:10:03]} 17. Re1 {[%emt 0:06:44]} fxe5 {[%emt 0:21:23]} 18. dxe5 {[%emt 0:05:16]} Bh4 {[%emt 0:02:07]} 19. Re2 {[%emt 0:07:57]} Rxf3 {[%emt 0:14:15]} 20. Kxf3 {[%emt 0:05:09]} Rf8+ {[%emt 0:00:36]} 21. Kg2 {[%emt 0:00:18]} Rxf2+ {[%emt 0:00:28]} 22. Kh1 {[%emt 0:04:32]} Rxe2 {[%emt 0:02:42]} 23. Qxe2 {[%emt 0:01:29]} Qxb3 {[%emt 0:02:18]} 24. Qg2 {[%emt 0:03:03]} d4 {[%emt 0:05:52]} 25. a4 {[%emt 0:05:33]} Nxe5 {[%emt 0:03:22]} 26. Ra3 {[%emt 0:04:33]} Qd1+ {[%emt 0:02:29]} 27. Kh2 {[%emt 0:04:51]} Bc6 {[%emt 0:02:45]} 28. Nc3 {[%emt 0:07:56]} Nf3+ {[%emt 0:01:16]} 0-1

[Event "CZE-ch U12 2020"]
[Site "Kouty nad Desnou"]
[Date "2020.03.07"]
[Round "1.10"]
[White "Juhanak, Daniel"]
[Black "Hobza, Richard"]
[Result "1-0"]
[ECO "A05"]
[WhiteElo "1656"]
[BlackElo "1251"]
[Annotator "NA RC"]
[PlyCount "147"]
[EventDate "2020.03.07"]
[EventCountry "CZE"]
[SourceTitle "playchess.com"]
[Source "ChessBase"]
[SourceQuality "1"]
[TimeControl "5400+30"]

1. Nf3 {[%emt 0:00:00]} Nf6 {[%emt 0:00:00]} 2. g3 {[%emt 0:01:19]} d5 {[%emt 0:01:49]} 3. d4 {[%emt 0:00:53]} e6 {[%emt 0:02:07]} 4. Bg2 {[%emt 0:02:23]} Be7 {[%emt 0:01:59]} 5. O-O {[%emt 0:00:18]} O-O {[%emt 0:01:03]} 6. c4 {[%emt 0:01:20]} c6 {[%emt 0:03:07]} 7. Nc3 {[%emt 0:05:56]} Nbd7 {[%emt 0:01:40]} 8. Qc2 {[%emt 0:02:10]} dxc4 {[%emt 0:03:05]} 9. Rd1 {[%emt 0:05:12]} Nb6 {[%emt 0:01:29]} 10. Ne5 {[%emt 0:02:28]} Qc7 {[%emt 0:03:44]} 11. Bf4 {[%emt 0:10:35]} Bd6 {[%emt 0:00:32]} 12. Ne4 {[%emt 0:04:45]} Nxe4 {[%emt 0:02:14]} 13. Bxe4 {[%emt 0:02:19]} g6 {[%emt 0:02:33]} 14. Bh6 {[%emt 0:13:57]} Re8 {[%emt 0:02:57]} 15. Nxc4 {[%emt 0:06:08]} Nxc4 {[%emt 0:01:35]} 16. Qxc4 {[%emt 0:00:53]} Bd7 {[%emt 0:02:23]} 17. Rac1 {[%emt 0:02:54]} Rac8 {[%emt 0:00:45]} 18. Qb3 {[%emt 0:09:12]} b6 {[%emt 0:02:54]} 19. d5 {[%emt 0:06:57]} exd5 {[%emt 0:00:57]} 20. Bxd5 {[%emt 0:00:13]} Be6 {[%emt 0:01:01]} 21. Qc3 {[%emt 0:03:35]} Be5 {[%emt 0:01:25]} 22. Qxc6 {[%emt 0:00:54]} Qxc6 {[%emt 0:00:41]} 23. Bxc6 {[%emt 0:05:12]} Red8 {[%emt 0:01:50]} 24. Rxd8+ {[%emt 0:03:17]} Rxd8 {[%emt 0:00:14]} 25. b3 {[%emt 0:00:55]} f6 {[%emt 0:01:23]} 26. Be3 {[%emt 0:03:16]} Bh3 {[%emt 0:02:06]} 27. Bg2 {[%emt 0:03:06]} Bb2 {[%emt 0:01:21]} 28. Rf1 {[%emt 0:01:37]} Bxg2 {[%emt 0:00:30]} 29. Kxg2 {[%emt 0:00:03]} Rc8 {[%emt 0:00:54]} 30. Rd1 {[%emt 0:00:20]} Rc7 {[%emt 0:01:47]} 31. Bf4 {[%emt 0:01:44]} Re7 {[%emt 0:00:52]} 32. Rd2 {[%emt 0:00:34]} Bc3 {[%emt 0:01:00]} 33. Rc2 {[%emt 0:00:09]} Bb4 {[%emt 0:00:45]} 34. Kf3 {[%emt 0:01:13]} f5 {[%emt 0:02:38]} 35. a4 {[%emt 0:00:39]} Kf7 {[%emt 0:02:46]} 36. Rc4 {[%emt 0:00:36]} Ba3 {[%emt 0:00:45]} 37. b4 {[%emt 0:00:31]} a6 {[%emt 0:02:55]} 38. b5 {[%emt 0:00:46]} axb5 {[%emt 0:00:20]} 39. axb5 {[%emt 0:00:06]} Bc5 {[%emt 0:00:38]} 40. Ra4 {[%emt 0:00:50]} Kf6 {[%emt 0:04:35]} 41. h4 {[%emt 0:00:29]} Ke6 {[%emt 0:02:54]} 42. Bg5 {[%emt 0:00:39]} Rd7 {[%emt 0:00:50]} 43. Be3 {[%emt 0:00:32]} Rd5 {[%emt 0:02:27]} 44. Bxc5 {[%emt 0:00:29]} Rxc5 {[%emt 0:00:17]} 45. Rb4 {[%emt 0:00:32]} Ke5 {[%emt 0:03:59]} 46. Ke3 {[%emt 0:00:25]} Rc3+ {[%emt 0:02:00]} 47. Kd2 {[%emt 0:00:21]} Ra3 {[%emt 0:01:20]} 48. e3 {[%emt 0:00:43]} Ra2+ {[%emt 0:02:30]} 49. Ke1 {[%emt 0:00:22]} Rc2 {[%emt 0:00:29]} 50. f3 {[%emt 0:00:28]} h5 {[%emt 0:01:56]} 51. g4 {[%emt 0:00:27]} Rh2 {[%emt 0:08:32]} 52. gxh5 {[%emt 0:00:32]} gxh5 {[%emt 0:00:14]} 53. Kd1 {[%emt 0:00:41]} Rf2 {[%emt 0:01:22]} 54. f4+ {[%emt 0:00:31]} Ke6 {[%emt 0:00:35]} 55. Rc4 {[%emt 0:00:09]} Rh2 {[%emt 0:00:58]} 56. Rc6+ {[%emt 0:00:28]} Kd5 {[%emt 0:00:14]} 57. Rxb6 {[%emt 0:00:24]} Rxh4 {[%emt 0:00:57]} 58. Rf6 {[%emt 0:00:31]} Ke4 {[%emt 0:00:38]} 59. b6 {[%emt 0:00:50]} Rg4 {[%emt 0:02:17]} 60. b7 {[%emt 0:00:36]} Rg8 {[%emt 0:00:13]} 61. Rb6 {[%emt 0:00:20]} Rb8 {[%emt 0:00:15]} 62. Ke2 {[%emt 0:00:12]} h4 {[%emt 0:00:31]} 63. Rb4+ {[%emt 0:00:09]} Kd5 {[%emt 0:00:16]} 64. Kf3 {[%emt 0:00:15]} Kc5 {[%emt 0:02:54]} 65. Rb2 {[%emt 0:00:19]} Kd5 {[%emt 0:00:50]} 66. Rb5+ {[%emt 0:00:45]} Ke6 {[%emt 0:00:19]} 67. Kg2 {[%emt 0:00:27]} Kd6 {[%emt 0:00:31]} 68. Kh3 {[%emt 0:00:20]} Kc6 {[%emt 0:00:16]} 69. Rb3 {[%emt 0:00:32]} Kd5 {[%emt 0:00:32]} 70. Kxh4 {[%emt 0:00:44]} Kc4 {[%emt 0:00:21]} 71. Rb6 {[%emt 0:00:31]} Kd3 {[%emt 0:00:22]} 72. Kg5 {[%emt 0:00:14]} Kxe3 {[%emt 0:00:50]} 73. Kxf5 {[%emt 0:00:07]} Kd4 {[%emt 0:00:25]} 74. Ke6 {[%emt 0:01:00]} 1-0

[Event "CZE-ch U12 2020"]
[Site "Kouty nad Desnou"]
[Date "2020.03.07"]
[Round "1.11"]
[White "Matus, Jakub"]
[Black "Jasso, Matej"]
[Result "0-1"]
[ECO "B98"]
[WhiteElo "1240"]
[BlackElo "1582"]
[Annotator "NA RC"]
[PlyCount "94"]
[EventDate "2020.03.07"]
[EventCountry "CZE"]
[SourceTitle "playchess.com"]
[Source "ChessBase"]
[SourceQuality "1"]
[TimeControl "5400+30"]

1. e4 {[%emt 0:00:00]} c5 {[%emt 0:00:00]} 2. Nf3 {[%emt 0:00:00]} d6 {[%emt 0:00:00]} 3. d4 {[%emt 0:00:00]} cxd4 {[%emt 0:00:00]} 4. Nxd4 {[%emt 0:00:00]} Nf6 {[%emt 0:00:04]} 5. Nc3 {[%emt 0:00:00]} a6 {[%emt 0:00:09]} 6. Bg5 {[%emt 0:00:33]} e6 {[%emt 0:00:11]} 7. f4 {[%emt 0:00:25]} Be7 {[%emt 0:00:07]} 8. Qf3 {[%emt 0:02:05]} h6 {[%emt 0:00:51]} 9. Bh4 {[%emt 0:00:50]} Qc7 {[%emt 0:01:14]} 10. Bd3 {[%emt 0:01:48]} Nc6 {[%emt 0:01:05]} 11. Nxc6 {[%emt 0:01:52]} bxc6 {[%emt 0:00:09]} 12. Bf2 {[%emt 0:03:24]} Rb8 {[%emt 0:02:37]} 13. Rb1 {[%emt 0:01:14]} Bb7 {[%emt 0:05:24]} 14. O-O {[%emt 0:01:57]} d5 {[%emt 0:01:15]} 15. exd5 {[%emt 0:01:23]} cxd5 {[%emt 0:00:47]} 16. Bd4 {[%emt 0:02:05]} Bc5 {[%emt 0:02:26]} 17. Ne2 {[%emt 0:02:01]} Bxd4+ {[%emt 0:08:36]} 18. Nxd4 {[%emt 0:00:13]} Qb6 {[%emt 0:00:20]} 19. Qf2 {[%emt 0:00:16]} Ng4 {[%emt 0:01:13]} 20. Qg3 {[%emt 0:03:32]} Qxd4+ {[%emt 0:00:51]} 21. Kh1 {[%emt 0:00:07]} Ne3 {[%emt 0:01:05]} 22. Rfe1 {[%emt 0:00:57]} Nc4 {[%emt 0:00:35]} 23. f5 {[%emt 0:01:13]} Kd7 {[%emt 0:03:59]} 24. Bxc4 {[%emt 0:02:54]} Qxc4 {[%emt 0:07:36]} 25. fxe6+ {[%emt 0:00:09]} Kc6 {[%emt 0:00:07]} 26. exf7 {[%emt 0:02:14]} Kb6 {[%emt 0:00:32]} 27. Qg6+ {[%emt 0:01:10]} Ka7 {[%emt 0:01:28]} 28. Re8 {[%emt 0:02:04]} Qc6 {[%emt 0:01:25]} 29. Re6 {[%emt 0:03:11]} Qd7 {[%emt 0:02:44]} 30. Rbe1 {[%emt 0:00:40]} Rhf8 {[%emt 0:10:47]} 31. Re7 {[%emt 0:01:16]} Qb5 {[%emt 0:01:31]} 32. h3 {[%emt 0:02:06]} d4 {[%emt 0:05:49]} 33. Re8 {[%emt 0:02:23]} Qb4 {[%emt 0:10:48]} 34. R1e6 {[%emt 0:02:25]} Qd2 {[%emt 0:02:11]} 35. R8e7 {[%emt 0:05:51]} Qc1+ {[%emt 0:02:29]} 36. Re1 {[%emt 0:00:23]} Qf4 {[%emt 0:00:31]} 37. Qxg7 {[%emt 0:01:14]} Qf2 {[%emt 0:05:44]} 38. Qg6 {[%emt 0:07:49]} Rxf7 {[%emt 0:01:21]} 39. Rxf7 {[%emt 0:00:56]} Qxe1+ {[%emt 0:00:10]} 40. Kh2 {[%emt 0:00:07]} Qe5+ {[%emt 0:00:33]} 41. Kg1 {[%emt 0:00:18]} Qg5 {[%emt 0:00:54]} 42. Qxg5 {[%emt 0:00:20]} hxg5 {[%emt 0:00:11]} 43. Rg7 {[%emt 0:00:04]} Rc8 {[%emt 0:00:21]} 44. Rd7 {[%emt 0:00:33]} Rxc2 {[%emt 0:01:07]} 45. Rxd4 {[%emt 0:00:20]} Rxg2+ {[%emt 0:00:05]} 46. Kf1 {[%emt 0:00:07]} Rxb2 {[%emt 0:00:10]} 47. Rg4 Rb5 {[%emt 0:00:41]} 0-1

[Event "CZE-ch U12 2020"]
[Site "Kouty nad Desnou"]
[Date "2020.03.07"]
[Round "1.12"]
[White "Martirosyan, David"]
[Black "Sedmihradsky, Tomas"]
[Result "1-0"]
[ECO "C64"]
[WhiteElo "1522"]
[BlackElo "1024"]
[Annotator "NA RC"]
[PlyCount "57"]
[EventDate "2020.03.07"]
[EventCountry "CZE"]
[SourceTitle "playchess.com"]
[Source "ChessBase"]
[SourceQuality "1"]
[TimeControl "5400+30"]

1. e4 {[%emt 0:00:00]} e5 {[%emt 0:00:00]} 2. Nf3 {[%emt 0:00:00]} Nc6 {[%emt 0:00:00]} 3. Bb5 {[%emt 0:00:00]} Bc5 {[%emt 0:00:26]} 4. O-O {[%emt 0:01:42]} d6 {[%emt 0:00:37]} 5. c3 {[%emt 0:00:46]} a6 {[%emt 0:01:54]} 6. Ba4 {[%emt 0:00:37]} b5 {[%emt 0:00:46]} 7. Bc2 {[%emt 0:00:45]} Bb7 {[%emt 0:01:06]} 8. d4 {[%emt 0:02:41]} exd4 {[%emt 0:00:36]} 9. cxd4 {[%emt 0:00:09]} Bb6 {[%emt 0:00:17]} 10. Nc3 {[%emt 0:04:02]} Nge7 {[%emt 0:01:50]} 11. Be3 {[%emt 0:04:41]} d5 {[%emt 0:01:57]} 12. e5 {[%emt 0:04:32]} Qd7 {[%emt 0:01:26]} 13. Ng5 {[%emt 0:05:59]} h6 {[%emt 0:01:45]} 14. e6 {[%emt 0:05:07]} fxe6 {[%emt 0:05:21]} 15. Qh5+ {[%emt 0:01:08]} Kd8 {[%emt 0:00:40]} 16. Nf7+ {[%emt 0:04:29]} Kc8 {[%emt 0:00:19]} 17. Nxh8 {[%emt 0:00:25]} Nxd4 {[%emt 0:00:52]} 18. Bxd4 {[%emt 0:02:45]} Bxd4 {[%emt 0:00:20]} 19. Qg4 {[%emt 0:03:47]} Bf6 {[%emt 0:01:24]} 20. Ng6 {[%emt 0:01:29]} Nxg6 {[%emt 0:02:28]} 21. Qxg6 {[%emt 0:02:00]} Qc6 {[%emt 0:04:14]} 22. Rad1 {[%emt 0:08:29]} b4 {[%emt 0:02:26]} 23. Ba4 {[%emt 0:02:16]} Qb6 {[%emt 0:01:10]} 24. Qe8+ {[%emt 0:04:27]} Bd8 {[%emt 0:00:13]} 25. Bd7+ {[%emt 0:03:20]} Kb8 {[%emt 0:00:08]} 26. Na4 {[%emt 0:00:57]} Qa5 {[%emt 0:00:46]} 27. Qxd8+ {[%emt 0:00:32]} Ka7 {[%emt 0:00:16]} 28. Qe7 {[%emt 0:00:11]} Kb8 {[%emt 0:00:38]} 29. Rd4 {[%emt 0:01:04]} 1-0